[Event "French-ch Youth U18 2022"]
[Site "Agen"]
[Date "2022.04.24"]
[Round "9.5"]
[White "Bellahcene, Sofia"]
[Black "Blanquet, Camille"]
[Result "0-1"]
[ECO "B15"]
[WhiteElo "1813"]
[BlackElo "1928"]
[Annotator "TA"]
[PlyCount "88"]
[EventDate "2022.04.17"]
[EventType "swiss"]
[EventCountry "FRA"]
[SourceTitle "playchess.com"]
[Source "ChessBase"]
[SourceQuality "1"]
[TimeControl "5400+30"]

{[%evp 14,88,49,40,42,23,47,21,34,16,14,16,10,8,10,2,12,0,77,0,0,0,0,0,53,38,65,0,81,66,81,43,70,48,56,20,82,27,44,0,0,0,0,0,0,-17,0,0,0,-29,-23,-36,-48,-54,-39,-82,-106,-134,-83,-182,-192,-336,-342,-927,-925,-1577,-1550,-1542,-1370,-29975,-29978,-29978,-29979,-29979,-29980,-29983,-29984]} 1. e4 {[%emt 0:00:49]} c6 {[%emt 0:00:08]} 2. d4 {[%emt 0:00:17]} d5 {[%emt 0:00:05]} 3. Nc3 {[%emt 0:00:46]} dxe4 {[%emt 0:00:06]} 4. Nxe4 {[%emt 0:00:10]} Nf6 {[%emt 0:00:20]} 5. Nxf6+ {[%emt 0:01:28]} exf6 {[%emt 0:00:05]} 6. c3 {[%emt 0:00:41]} Bd6 {[%emt 0:00:30]} 7. Bd3 {[%emt 0:00:30]} O-O {[%emt 0:00:10]} 8. Qc2 {[%emt 0:00:13]} Re8+ {[%emt 0:00:12] B15: Caro-Kann: 3 Nc3: 3...g6 and 3...dxe4 4 Nxe4 Nf6 5 Nxf6+ exf6.} 9. Ne2 {[%emt 0:00:05]} h5 {[%emt 0:00:12]} 10. Be3 {[%emt 0:01:52]} Nd7 {[%emt 0:00:29] The position is equal.} 11. O-O-O {[%emt 0:01:29]} Nf8 {[%emt 0:00:10]} 12. Kb1 {[%emt 0:04:24]} Be6 {[%emt 0:00:11]} 13. c4 {[%emt 0:01:26]} Rc8 {[%emt 0:00:20][%cal Ob7b5]} 14. Nc3 {[%emt 0:00:19]} Bb4 {[%emt 0:03:36][%cal Ob7b5]} 15. Ne4 {[%emt 0:01:43]} b5 {[%emt 0:06:39] [#]} (15... Be7) (15... Be7 $11 {remains equal.}) 16. Nc5 $146 {[%emt 0:15:32]} (16. c5 $1 $16) ({Predecessor:} 16. c5 Re7 17. Nd6 Rb8 18. Bf4 Ba5 19. Be4 Bd7 20. d5 cxd5 21. Bxd5 Bc7 22. c6 {1-0 (48) Lobanov,S (2522)-Abdusattorov,N (2627) Chess.com INT 2020}) 16... Bxc5 $11 {[%emt 0:03:41]} 17. dxc5 {[%emt 0:00:51][%cal Od3h7]} Qa5 {[%emt 0:00:37]} 18. b3 {[%emt 0:05:17]} Nd7 {[%emt 0:05:31]} (18... a6 $11) 19. cxb5 {[%emt 0:10:03]} cxb5 {[%emt 0:02:13]} 20. Bd4 {[%emt 0:09:18]} ({Better is} 20. Bh7+ $14 Kh8 21. Be4) 20... Red8 {[%emt 0:08:32]} (20... b4) (20... b4 $11) 21. Bh7+ $16 {[%emt 0:03:07] This bishop pair is nice.} Kh8 {[%emt 0:04:03]} 22. Bf5 {[%emt 0:06:59]} Qc7 {[%emt 0:07:07]} 23. Bxe6 {[%emt 0:02:07]} fxe6 {[%emt 0:00:09]} 24. Be3 {[%emt 0:00:47]} Ne5 {[%emt 0:05:35]} (24... Kg8 $11) 25. Qe2 {[%emt 0:00:38]} (25. Bf4) (25. Bf4 $16) 25... Ng4 {[%emt 0:03:25]} 26. h3 (26. Rxd8+ Rxd8 27. Rc1 (27. Qxb5 Nxe3 28. fxe3 Qe5)) 26... Nxe3 {[%emt 0:06:54]} 27. Qxh5+ {[%emt 0:01:10]} Kg8 {[%emt 0:00:05]} 28. fxe3 {[%emt 0:00:09]} Qc6 {[%emt 0:01:14]} 29. Qg4 {[%emt 0:04:34] Against Qe4+} Rxd1+ {[%emt 0:07:37]} (29... f5 30. Qh4 (30. Rxd8+ Rxd8 31. Qb4 Qxg2) 30... Rxd1+ 31. Rxd1 Qxc5 32. Rd8+ Rxd8 33. Qxd8+ Kf7) (29... f5 {is interesting.} 30. Qh4 Rxd1+ 31. Rxd1 Qxc5 32. Rd8+ Rxd8 33. Qxd8+ Kf7) 30. Rxd1 $11 {[%emt 0:00:10][%mdl 4096] Endgame Threatens to win with b4. KQR-KQR} f5 {[%emt 0:02:09]} 31. Qd4 {[%emt 0:06:08]} (31. Qg6 $5 {[%cal Rd1d4]}) 31... Qxc5 {[%emt 0:01:19] With the idea ...Qc2+.} 32. Qxc5 {[%emt 0:03:37]} Rxc5 {[%emt 0:00:05] KR-KR} 33. Kb2 {[%emt 0:00:53] Inhibits Rc3.} a5 {[%emt 0:01:47]} 34. g4 {[%emt 0:04:30]} Kf7 {[%emt 0:01:51]} 35. Rd4 {[%emt 0:06:51]} Kf6 {[%emt 0:06:38]} (35... g5 $142 36. a4 bxa4 37. Rxa4 Kg6) 36. Rd7 {[%emt 0:03:18]} (36. gxf5 $17 {might work better.} exf5 37. h4) 36... g5 $19 {[%emt 0:01:36]} 37. Rd4 {[%emt 0:03:30]} (37. a3 {was called for.}) 37... Ke5 {[%emt 0:01:55] White must now prevent ...f4.} 38. h4 $2 {[%emt 0:01:58] [#]} (38. Rd8 Ke4 39. Re8) 38... f4 $1 {[%emt 0:00:30][%cal Bf5f4,Bf4e3,Be3e2][%mdl 32]} ({Inferior is} 38... gxh4 39. gxf5 exf5 40. Rxh4 $15) 39. h5 {[%emt 0:00:30]} fxe3 {[%emt 0:01:41]} 40. Rd1 {[%emt 0:01:16]} Ke4 {[%emt 0:01:59] ( -> ...e2)} 41. h6 {[%emt 0:00:33]} e2 {[%emt 0:01:00] Black mates.} 42. Rh1 {[%emt 0:00:50]} Kd3 {[%emt 0:00:50]} 43. h7 {[%emt 0:00:21]} Rc8 {[%emt 0:00:15]} 44. a4 {[%emt 0:00:49]} b4 {[%emt 0:01:43] Weighted Error Value: White=0.62/Black=0.15 (very precise)} 0-1

[Event "French-ch Youth U18 2022"]
[Site "Agen"]
[Date "2022.04.24"]
[Round "9.6"]
[White "Courjal, Pauline"]
[Black "Tomasi, Elise"]
[Result "0-1"]
[ECO "C43"]
[WhiteElo "1976"]
[BlackElo "1988"]
[Annotator "TA"]
[PlyCount "62"]
[EventDate "2022.04.17"]
[EventType "swiss"]
[EventCountry "FRA"]
[SourceTitle "playchess.com"]
[Source "ChessBase"]
[SourceQuality "1"]
[TimeControl "5400+30"]

{[%evp 9,62,0,0,3,28,0,0,-61,-7,-35,23,-36,-35,-68,-1,-74,-63,-183,-195,-188,-183,-213,-199,-203,-102,-230,-241,-243,-252,-881,-209,-533,-529,-518,-507,-694,-681,-847,-832,-1066,-1066,-1189,-1177,-2622,-2583,-5066,-4994,-1925,-1876,-29984,-29985,-29985,-29985,-29985,-29986]} 1. e4 {[%emt 0:01:10]} e5 {[%emt 0:00:37]} 2. Nf3 {[%emt 0:00:06]} Nf6 {[%emt 0:00:39]} 3. d4 {[%emt 0:03:40]} Nxe4 {[%emt 0:03:42]} 4. Bd3 {[%emt 0:00:11]} d5 {[%emt 0:01:28]} 5. dxe5 {[%emt 0:00:07]} Be7 {[%emt 0:10:28]} 6. c3 {[%emt 0:12:49] [#] C43: Petroff Defence: 3 d4.} Bf5 $146 {[%emt 0:08:20]} ({Predecessor:} 6... Nc6 7. O-O Bg4 8. Bf4 Qd7 9. h3 Bh5 10. Re1 Nc5 11. Be2 Ne6 12. Bg3 O-O-O 13. b4 Kb8 {½-½ (54) Jonsson,D (2542)-Mendl,M (2525) ICCF email 2015}) 7. Nd4 {[%emt 0:06:00]} Bg6 {[%emt 0:21:50]} 8. e6 {[%emt 0:00:23]} (8. O-O $11) 8... f5 {[%emt 0:01:42]} (8... O-O $15) 9. f3 {[%emt 0:15:22] [#]} Nd6 {[%emt 0:00:41]} ({Black should play} 9... O-O $1 $15) 10. Bf4 {[%emt 0:01:12]} ({Better is} 10. Ne2 $11) 10... O-O $15 {[%emt 0:03:50]} 11. b4 {[%emt 0:04:33]} Bf6 {[%emt 0:05:26]} (11... a5 $15 12. b5 c5 13. bxc6 Nxc6) 12. Qe2 {[%emt 0:02:11]} (12. O-O $1 $11) 12... Re8 {[%emt 0:06:28] And now ...Bxd4 would win.} 13. Be5 {[%emt 0:07:29]} (13. Na3 $15) 13... Nc6 $19 {[%emt 0:01:21]} 14. Nxc6 {[%emt 0:13:27]} bxc6 {[%emt 0:00:09]} 15. Bxf6 {[%emt 0:00:06]} Qxf6 {[%emt 0:00:23]} 16. O-O {[%emt 0:00:30]} Qxe6 {[%emt 0:03:08]} ({Black should try} 16... Rxe6 $19 17. Qf2 Rae8) 17. Qd1 {[%emt 0:05:58] Loses the game.} (17. Qxe6+ $17 Rxe6 18. Ba6) 17... f4 {[%emt 0:01:02] aiming for ...Qe3+.} 18. Bxg6 {[%emt 0:00:30]} Qxg6 {[%emt 0:00:14]} 19. Qd4 {[%emt 0:01:25]} (19. Nd2) 19... Qc2 $2 {[%emt 0:06:32]} (19... Re2 {[%csl Ge2][%cal Rg6g2]} 20. Rf2 {[#]} Nf5 $1 {[%mdl 512]}) 20. Nd2 $2 {[%emt 0:10:56]} (20. Qd2 {was the crucial defense.} Qf5 21. Na3) 20... Re2 {[%emt 0:02:10]} 21. Rf2 {[%emt 0:07:05]} Rae8 {[%emt 0:04:21][%cal Ba8e8,Be8e5,Be5g5][%mdl 32]} 22. Raf1 {[%emt 0:00:38]} Nb5 {[%emt 0:06:18][%cal Bd6b5,Bb5c3,Bc3e2][%mdl 32]} 23. Qxf4 {[%emt 0:00:51]} Nxc3 {[%emt 0:00:18]} 24. Qg5 {[%emt 0:01:48]} h6 {[%emt 0:00:34]} 25. Qh5 {[%emt 0:00:57]} R8e5 {[%emt 0:00:50]} 26. Qg4 {[%emt 0:02:59]} Qxd2 {[%emt 0:00:38]} 27. Rxe2 {[%emt 0:01:05]} Nxe2+ {[%emt 0:00:41]} 28. Kh1 {[%emt 0:00:03]} Rg5 {[%emt 0:00:18]} 29. Qh3 {[%emt 0:00:15]} Nf4 {[%emt 0:00:09] Black mates.} 30. Qc8+ {[%emt 0:00:11]} Kh7 {[%emt 0:00:00][%csl Gf4,Gg5][%cal Rd2g2]} 31. Rg1 {[%emt 0:00:22]} Qf2 {[%emt 0:00:28] Weighted Error Value: White=1.49/Black=0.41} 0-1

[Event "French-ch Youth U18 2022"]
[Site "Agen"]
[Date "2022.04.24"]
[Round "9.7"]
[White "Renaudin, Axelle"]
[Black "Sumarriva Paulin, Laura"]
[Result "0-1"]
[ECO "A09"]
[WhiteElo "1591"]
[BlackElo "1925"]
[Annotator "TA"]
[PlyCount "36"]
[EventDate "2022.04.17"]
[EventType "swiss"]
[EventCountry "FRA"]
[SourceTitle "playchess.com"]
[Source "ChessBase"]
[SourceQuality "1"]
[TimeControl "5400+30"]

{[%evp 9,36,-16,-26,-28,-14,-36,-38,-36,-10,-22,-26,-45,-43,-60,-28,-47,3,-51,-36,-56,-31,-63,-38,-91,-69,-1061,-1054,-29998,-29999]} 1. Nf3 {[%emt 0:00:03]} d5 {[%emt 0:04:17]} 2. c4 {[%emt 0:00:07]} dxc4 {[%emt 0:00:25]} 3. e4 {[%emt 0:00:13]} Bg4 {[%emt 0:00:51]} 4. Bxc4 {[%emt 0:01:44]} e6 {[%emt 0:00:27]} 5. Qb3 {[%emt 0:14:09]} Bxf3 {[%emt 0:02:13]} 6. Qxf3 {[%emt 0:00:21] A09: Réti Opening: 1 Nf3 d5 2 c4.} Nc6 {[%emt 0:21:32] [#]} 7. Qd1 $146 {[%emt 0:15:32]} ({Predecessor:} 7. Nc3 a6 8. O-O Nd4 9. Qd1 Ne7 10. d3 Nec6 11. Be3 Bc5 12. Qh5 Ba7 13. Rac1 {1-0 (44) Boff,L (2023)-Terao,J (2257) Florianopolis 2022}) 7... Bc5 {[%emt 0:08:10][%cal Oc5f2] White must now prevent ...Bxf2+!} 8. d3 {[%emt 0:05:00] Black is slightly better.} Qf6 {[%emt 0:10:15][%csl Gc5][%cal Rf6f2]} 9. O-O {[%emt 0:02:00]} Nge7 {[%emt 0:02:47][%cal Bg8e7,Be7g6,Bg6f4][%mdl 32]} 10. Bd2 {[%emt 0:14:14]} O-O {[%emt 0:06:03]} ({Don't take} 10... Qxb2 11. Nc3 (11. Bc3 Qb6 $11) 11... Nd4 12. Rb1 $16) 11. Qh5 {[%emt 0:15:25]} Bd4 {[%emt 0:02:21]} (11... Qxb2 $2 {[#]} 12. Qxc5 $1 b6 13. Qa3 (13. Bc3 Qxc3 14. Nxc3 bxc5 $11) 13... Qxa3 14. Nxa3 $18) 12. Nc3 {[%emt 0:00:32]} h6 {[%emt 0:10:41]} (12... Qg6 $15 13. Qxg6 Nxg6) 13. Qe2 {[%emt 0:02:34]} (13. Ne2 $11) 13... Ng6 $36 {[%emt 0:02:30][%mdl 2048] Black fights for an advantage.} 14. Rac1 {[%emt 0:12:52]} a6 {[%emt 0:07:50]} 15. a3 {[%emt 0:02:53]} Nce5 {[%emt 0:03:20] &Nero is more active.} 16. Be3 {[%emt 0:04:59]} ({White should play} 16. Kh1 $15) 16... Nf4 {[%emt 0:00:45] Pair of Knights!} 17. Qd2 {[%emt 0:00:42][%mdl 8192] [#]} (17. Bxf4 $15 Qxf4 18. g3) 17... Nf3+ $1 $19 {[%emt 0:01:07][%mdl 512]} 18. gxf3 {[%emt 0:00:36]} (18. Kh1 Nxd2) 18... Qg5+ {[%emt 0:00:12] Weighted Error Value: White=0.96/Black=0.14 (very precise)} 0-1

[Event "French-ch Youth U18 2022"]
[Site "Agen"]
[Date "2022.04.24"]
[Round "9.8"]
[White "Lordier, Sophia"]
[Black "Estin-Charbonnel, Lucie"]
[Result "1-0"]
[ECO "A58"]
[WhiteElo "1725"]
[BlackElo "1537"]
[Annotator "NA RC COMBH"]
[PlyCount "111"]
[EventDate "2022.04.17"]
[EventType "swiss"]
[EventCountry "FRA"]
[SourceTitle "playchess.com"]
[Source "ChessBase"]
[SourceQuality "1"]
[TimeControl "5400+30"]

1. d4 {[%emt 0:02:51]} Nf6 {[%emt 0:00:04]} 2. c4 {[%emt 0:00:02]} c5 {[%emt 0:00:04]} 3. d5 {[%emt 0:00:04]} b5 {[%emt 0:00:05]} 4. cxb5 {[%emt 0:00:03]} a6 {[%emt 0:00:03]} 5. bxa6 {[%emt 0:00:03]} g6 {[%emt 0:00:05]} 6. a7 {[%emt 0:00:05]} Rxa7 {[%emt 0:03:37]} 7. Nc3 {[%emt 0:01:14]} d6 {[%emt 0:02:04]} 8. e4 {[%emt 0:01:37]} Bg7 {[%emt 0:00:53]} 9. Nf3 {[%emt 0:01:06]} O-O {[%emt 0:00:14]} 10. Bd3 {[%emt 0:01:30]} Ba6 {[%emt 0:03:49]} 11. O-O {[%emt 0:01:20]} Nbd7 {[%emt 0:03:02]} 12. Bxa6 {[%emt 0:03:22]} Rxa6 {[%emt 0:00:15]} 13. Qe2 {[%emt 0:00:12]} Qb6 {[%emt 0:03:43]} 14. a4 {[%emt 0:01:44]} Rfa8 {[%emt 0:00:28]} 15. Nd2 {[%emt 0:14:59]} Qb7 {[%emt 0:08:02]} 16. Rb1 {[%emt 0:05:22]} Ne8 {[%emt 0:05:06]} 17. Qd3 {[%emt 0:06:21]} Bxc3 {[%emt 0:17:39]} 18. bxc3 {[%emt 0:01:44]} Qa7 {[%emt 0:00:10]} 19. Kh1 {[%emt 0:04:24]} Rxa4 {[%emt 0:07:10]} 20. f4 {[%emt 0:03:35]} Nef6 {[%emt 0:29:58]} 21. Bb2 {[%emt 0:01:49]} c4 {[%emt 0:01:19]} 22. Qe2 {[%emt 0:05:14]} Nc5 {[%emt 0:06:10]} 23. Ra1 {[%emt 0:01:30]} Rxa1 {[%emt 0:04:21]} 24. Rxa1 {[%emt 0:00:02]} Qxa1+ {[%emt 0:00:08]} 25. Bxa1 {[%emt 0:00:09]} Rxa1+ {[%emt 0:00:05]} 26. Nf1 {[%emt 0:00:03]} Nfxe4 27. Kg1 {[%emt 0:02:00]} Nxc3 {[%emt 0:00:53]} 28. Qxc4 {[%emt 0:05:33]} N5e4 {[%emt 0:00:27]} 29. h3 {[%emt 0:01:09]} Rd1 {[%emt 0:03:15]} 30. Kh2 {[%emt 0:00:48]} Rxd5 {[%emt 0:00:13]} 31. Qc7 {[%emt 0:01:03]} e6 {[%emt 0:01:23]} 32. Ng3 {[%emt 0:05:01]} Rc5 {[%emt 0:01:07]} 33. Qb8+ {[%emt 0:00:15]} Kg7 {[%emt 0:00:06]} 34. Qb4 {[%emt 0:02:02]} Nxg3 {[%emt 0:00:59]} 35. Kxg3 {[%emt 0:00:39]} d5 {[%emt 0:00:21]} 36. Kh2 {[%emt 0:01:48]} Ne4 {[%emt 0:00:14]} 37. Qd4+ {[%emt 0:00:30]} Kg8 {[%emt 0:00:12]} 38. Qb4 {[%emt 0:00:24]} Rc4 {[%emt 0:00:31]} 39. Qb8+ {[%emt 0:00:13]} Kg7 {[%emt 0:00:05]} 40. Qe5+ {[%emt 0:00:02]} Kg8 {[%emt 0:00:26]} 41. h4 {[%emt 0:00:00]} Nc3 {[%emt 0:00:24]} 42. h5 {[%emt 0:00:00]} gxh5 43. f5 {[%emt 0:00:14]} exf5 {[%emt 0:01:19]} 44. Qxf5 {[%emt 0:00:49]} Rg4 {[%emt 0:00:29]} 45. Qc8+ {[%emt 0:00:10]} Kg7 {[%emt 0:00:16]} 46. Qxc3+ {[%emt 0:00:05]} f6 {[%emt 0:01:00]} 47. Qf3 {[%emt 0:01:19]} Rg5 {[%emt 0:00:54]} 48. g3 {[%emt 0:00:46]} Re5 {[%emt 0:00:51]} 49. Kh3 {[%emt 0:00:35]} Rg5 {[%emt 0:00:17]} 50. Qf4 {[%emt 0:00:25]} Kg6 {[%emt 0:00:34]} 51. Qd6 {[%emt 0:00:57]} h6 {[%emt 0:00:36]} 52. Qd7 {[%emt 0:00:37]} Re5 {[%emt 0:00:28]} 53. Kg2 {[%emt 0:00:10]} Rf5 {[%emt 0:00:20]} 54. Qe8+ {[%emt 0:00:10]} Kg7 {[%emt 0:00:13]} 55. Qe6 {[%emt 0:00:19]} Kg6 {[%emt 0:00:09]} 56. Qg8# {[%emt 0:00:08]} 1-0